[Event "Kupreichik Memorial Rapid 2019"]
[Site "Minsk"]
[Date "2019.08.17"]
[Round "8.2"]
[White "Zhukova, Natalia"]
[Black "Zhigalko, Sergei"]
[Result "0-1"]
[ECO "A05"]
[WhiteElo "2333"]
[BlackElo "2574"]
[Annotator "ChessBase"]
[PlyCount "58"]
[EventDate "2019.08.15"]
[EventType "swiss"]
[EventCountry "BLR"]
[SourceTitle "playchess.com"]
[Source "ChessBase"]
[SourceQuality "1"]
[TimeControl "900+10"]

1. Nf3 {[%emt 0:00:00]} Nf6 {[%emt 0:00:00]} 2. c4 {[%emt 0:00:00]} e6 {[%emt 0:00:00]} 3. b3 {[%emt 0:00:51]} d5 {[%emt 0:00:44]} 4. Bb2 {[%emt 0:00:04]} Be7 {[%emt 0:01:12]} 5. e3 {[%emt 0:00:08]} O-O {[%emt 0:00:03]} 6. Nc3 {[%emt 0:00:05]} b6 {[%emt 0:00:21]} 7. cxd5 {[%emt 0:02:16]} exd5 {[%emt 0:00:01]} 8. d4 {[%emt 0:00:06]} Bb7 {[%emt 0:00:08]} 9. Bd3 {[%emt 0:00:02]} Nbd7 {[%emt 0:00:34]} 10. O-O {[%emt 0:00:05]} Ne4 {[%emt 0:00:15]} 11. Ne2 {[%emt 0:00:09]} Bd6 {[%emt 0:00:16]} 12. Ng3 {[%emt 0:00:03]} Re8 {[%emt 0:00:13]} 13. Rc1 {[%emt 0:00:23]} g6 {[%emt 0:00:27]} 14. Qc2 {[%emt 0:00:28]} Rc8 {[%emt 0:00:50]} 15. Qe2 {[%emt 0:00:50]} Ndf6 {[%emt 0:03:29]} 16. Ne5 {[%emt 0:01:24]} c5 {[%emt 0:00:45]} 17. Nxe4 {[%emt 0:03:38]} dxe4 {[%emt 0:03:23]} 18. Bc4 {[%emt 0:02:30]} Bd5 {[%emt 0:00:10]} 19. Ng4 {[%emt 0:00:31]} Nxg4 {[%emt 0:00:48]} 20. Qxg4 {[%emt 0:00:05]} Bxc4 {[%emt 0:00:45]} 21. Rxc4 {[%emt 0:00:17]} b5 {[%emt 0:00:34]} 22. Rcc1 {[%emt 0:00:30]} c4 {[%emt 0:00:14]} 23. Qe2 {[%emt 0:03:58]} Qa5 {[%emt 0:00:05]} 24. bxc4 {[%emt 0:00:18]} bxc4 {[%emt 0:00:02]} 25. Rxc4 {[%emt 0:00:05]} Qxa2 {[%emt 0:00:22]} 26. Rxc8 {[%emt 0:00:18]} Rxc8 {[%emt 0:00:02]} 27. Ra1 {[%emt 0:00:08]} Qxa1+ {[%emt 0:00:16]} 28. Bxa1 {[%emt 0:00:01]} Rc1+ {[%emt 0:00:02]} 29. Qf1 {[%emt 0:00:00]} Bxh2+ {[%emt 0:00:01]} 0-1

[Event "Kupreichik Memorial Rapid 2019"]
[Site "Minsk"]
[Date "2019.08.17"]
[Round "8.4"]
[White "Meshkov, Yuri A."]
[Black "Vaganian, Rafael A"]
[Result "0-1"]
[ECO "D00"]
[WhiteElo "2336"]
[BlackElo "2514"]
[Annotator "ChessBase"]
[PlyCount "94"]
[EventDate "2019.08.15"]
[EventType "swiss"]
[EventCountry "BLR"]
[SourceTitle "playchess.com"]
[Source "ChessBase"]
[SourceQuality "1"]
[TimeControl "900+10"]

1. d4 {[%emt 0:00:00]} d5 {[%emt 0:00:00]} 2. Bf4 {[%emt 0:00:00]} Nf6 {[%emt 0:00:02]} 3. e3 {[%emt 0:00:00]} g6 {[%emt 0:00:08]} 4. h3 {[%emt 0:00:34]} Bg7 {[%emt 0:00:03]} 5. Nd2 {[%emt 0:00:02]} O-O {[%emt 0:00:11]} 6. Ngf3 {[%emt 0:00:01]} c5 {[%emt 0:00:28]} 7. c3 {[%emt 0:00:01]} b6 {[%emt 0:00:02]} 8. Bd3 {[%emt 0:00:38]} Bb7 {[%emt 0:00:01]} 9. Qb1 {[%emt 0:00:10]} Nbd7 {[%emt 0:00:09]} 10. O-O {[%emt 0:00:13]} a6 {[%emt 0:00:44]} 11. a4 {[%emt 0:01:07]} Re8 {[%emt 0:00:03]} 12. Ne5 {[%emt 0:00:01]} Nxe5 {[%emt 0:00:28]} 13. Bxe5 {[%emt 0:00:07]} Bh6 {[%emt 0:00:12]} 14. Rd1 {[%emt 0:01:35]} Nd7 {[%emt 0:00:02]} 15. Bf4 {[%emt 0:01:04]} Bg7 {[%emt 0:00:37]} 16. Nf3 {[%emt 0:00:05]} f6 {[%emt 0:00:18]} 17. e4 {[%emt 0:00:38]} e5 {[%emt 0:01:33]} 18. dxe5 {[%emt 0:00:07]} fxe5 {[%emt 0:00:05]} 19. Bg5 Bf6 20. Bh6 {[%emt 0:00:24]} c4 {[%emt 0:02:11]} 21. Bc2 {[%emt 0:00:17]} Nc5 {[%emt 0:00:07]} 22. b4 {[%emt 0:00:14]} Nd3 {[%emt 0:03:13]} 23. Bxd3 {[%emt 0:00:30]} cxd3 {[%emt 0:00:01]} 24. Qxd3 {[%emt 0:02:34]} Rc8 {[%emt 0:01:23]} 25. Nd2 {[%emt 0:00:05]} d4 {[%emt 0:00:50]} 26. c4 {[%emt 0:00:23]} Qe7 {[%emt 0:00:01]} 27. Rdb1 {[%emt 0:00:24]} Kh8 {[%emt 0:00:06]} 28. a5 {[%emt 0:01:38]} bxa5 {[%emt 0:00:29]} 29. Rxa5 {[%emt 0:00:10]} g5 {[%emt 0:00:25]} 30. Nf1 {[%emt 0:03:05]} Qe6 {[%emt 0:00:06]} 31. Ng3 {[%emt 0:00:01]} Bd8 {[%emt 0:00:41]} 32. Nf5 {[%emt 0:00:01]} Bxa5 {[%emt 0:00:08]} 33. bxa5 {[%emt 0:00:00]} Bc6 {[%emt 0:01:17]} 34. Bxg5 {[%emt 0:00:16]} Rb8 {[%emt 0:00:12]} 35. Rxb8 {[%emt 0:00:26]} Rxb8 {[%emt 0:00:01]} 36. Qa3 {[%emt 0:00:01]} Bxe4 {[%emt 0:00:18]} 37. Ng3 {[%emt 0:00:07]} Bg6 {[%emt 0:00:07]} 38. Qc5 {[%emt 0:00:09]} Rc8 {[%emt 0:00:23]} 39. Qa7 {[%emt 0:00:10]} d3 {[%emt 0:00:24]} 40. c5 {[%emt 0:00:17]} Kg8 41. Be3 {[%emt 0:00:14]} Rd8 {[%emt 0:00:40]} 42. Nf1 {[%emt 0:00:01]} Kh8 {[%emt 0:00:28]} 43. Nd2 {[%emt 0:00:01]} Rg8 {[%emt 0:00:04]} 44. Qb7 {[%emt 0:00:33]} Be8 {[%emt 0:00:04]} 45. Qb6 {[%emt 0:00:18]} Bc6 {[%emt 0:00:06]} 46. f3 {[%emt 0:00:01]} Qxh3 {[%emt 0:00:03]} 47. g4 {[%emt 0:00:10]} Rxg4+ {[%emt 0:00:01]} 0-1

[Event "Kupreichik Memorial Rapid 2019"]
[Site "Minsk"]
[Date "2019.08.17"]
[Round "8.9"]
[White "Lazavik, Denis"]
[Black "Dydyshko, Viacheslav"]
[Result "1-0"]
[ECO "E12"]
[WhiteElo "2347"]
[BlackElo "2506"]
[Annotator "ChessBase"]
[PlyCount "45"]
[EventDate "2019.08.15"]
[EventType "swiss"]
[EventCountry "BLR"]
[SourceTitle "playchess.com"]
[Source "ChessBase"]
[SourceQuality "1"]
[TimeControl "900+10"]

1. d4 {[%emt 0:00:00]} Nf6 {[%emt 0:00:00]} 2. c4 e6 {[%emt 0:00:00]} 3. Nf3 {[%emt 0:00:09]} b6 {[%emt 0:00:00]} 4. a3 {[%emt 0:00:06]} Bb7 {[%emt 0:00:05]} 5. Nc3 {[%emt 0:00:05]} g6 {[%emt 0:00:05]} 6. Qc2 {[%emt 0:00:11]} Bg7 {[%emt 0:00:04]} 7. e4 {[%emt 0:00:08]} O-O {[%emt 0:00:03]} 8. Be2 {[%emt 0:00:27]} d5 {[%emt 0:00:09]} 9. cxd5 {[%emt 0:02:52]} exd5 {[%emt 0:00:03]} 10. e5 {[%emt 0:00:05]} Ne4 {[%emt 0:00:03]} 11. O-O {[%emt 0:00:58]} c5 {[%emt 0:04:18]} 12. dxc5 {[%emt 0:01:12]} bxc5 {[%emt 0:00:03]} 13. Nxe4 {[%emt 0:00:18]} dxe4 {[%emt 0:00:02]} 14. Nd2 {[%emt 0:00:05]} Nc6 {[%emt 0:03:00]} 15. Qxc5 {[%emt 0:02:58]} Nxe5 {[%emt 0:00:54]} 16. Qe3 {[%emt 0:01:25]} f5 {[%emt 0:01:29]} 17. Rd1 {[%emt 0:01:54]} Qc7 {[%emt 0:02:29]} 18. Qb3+ {[%emt 0:02:36]} Kh8 {[%emt 0:00:14]} 19. Nc4 {[%emt 0:00:43]} Ba6 {[%emt 0:02:16]} 20. Nxe5 {[%emt 0:00:50]} Bxe2 {[%emt 0:00:14]} 21. Bf4 {[%emt 0:00:55]} Bxe5 {[%emt 0:00:18]} 22. Rd7 {[%emt 0:00:02]} Qb8 {[%emt 0:01:17]} 23. Qe6 {[%emt 0:00:11]} 1-0

[Event "Kupreichik Memorial Rapid 2019"]
[Site "Minsk"]
[Date "2019.08.17"]
[Round "8.12"]
[White "Zarubitski, Viachaslau"]
[Black "Kameko, Aleksandr"]
[Result "1-0"]
[ECO "C41"]
[WhiteElo "2426"]
[BlackElo "2045"]
[Annotator "NA"]
[PlyCount "81"]
[EventDate "2019.08.15"]
[EventType "swiss"]
[EventCountry "BLR"]
[SourceTitle "playchess.com"]
[Source "ChessBase"]
[SourceQuality "1"]
[TimeControl "900+10"]

1. e4 {[%emt 0:00:00]} e5 {[%emt 0:00:00]} 2. Nf3 {[%emt 0:00:00]} d6 {[%emt 0:00:00]} 3. d4 {[%emt 0:00:04]} exd4 {[%emt 0:00:00]} 4. Nxd4 {[%emt 0:00:01]} Nf6 {[%emt 0:00:00]} 5. Nc3 {[%emt 0:00:01]} g6 {[%emt 0:00:02]} 6. Bf4 {[%emt 0:00:51]} Bg7 {[%emt 0:00:09]} 7. Qd2 {[%emt 0:00:17]} Nc6 {[%emt 0:00:15]} 8. Nxc6 {[%emt 0:01:08]} bxc6 {[%emt 0:00:02]} 9. Bc4 {[%emt 0:01:25]} O-O {[%emt 0:01:12]} 10. O-O {[%emt 0:00:22]} Be6 {[%emt 0:00:34]} 11. Bb3 {[%emt 0:00:06]} Re8 {[%emt 0:00:26]} 12. Rfe1 {[%emt 0:00:02]} Bxb3 {[%emt 0:02:32]} 13. axb3 {[%emt 0:00:01]} Nd7 {[%emt 0:00:15]} 14. f3 {[%emt 0:02:50]} Qb8 {[%emt 0:01:07]} 15. Be3 {[%emt 0:00:24]} Qb7 {[%emt 0:00:35]} 16. Ra5 {[%emt 0:00:36]} Re5 {[%emt 0:01:30]} 17. Rea1 {[%emt 0:00:01]} Rxa5 {[%emt 0:00:03]} 18. Rxa5 {[%emt 0:00:01]} Qb4 {[%emt 0:01:00]} 19. Ra4 {[%emt 0:00:59]} Qb7 {[%emt 0:00:01]} 20. Ra5 {[%emt 0:00:07]} Qb4 {[%emt 0:00:04]} 21. Ra6 {[%emt 0:00:27]} Qb7 {[%emt 0:00:08]} 22. Qe2 {[%emt 0:00:21]} Nb8 {[%emt 0:01:46]} 23. Ra5 {[%emt 0:00:57]} a6 {[%emt 0:00:27]} 24. Ra1 {[%emt 0:02:19]} Nd7 {[%emt 0:01:22]} 25. Kh1 {[%emt 0:00:03]} a5 {[%emt 0:00:18]} 26. Qd2 {[%emt 0:00:25]} h5 {[%emt 0:00:56]} 27. h3 {[%emt 0:00:52]} Ne5 {[%emt 0:00:13]} 28. Ne2 {[%emt 0:00:27]} a4 {[%emt 0:00:30]} 29. f4 {[%emt 0:01:55]} Nd7 {[%emt 0:00:03]} 30. Rxa4 {[%emt 0:00:03]} Rxa4 {[%emt 0:00:16]} 31. bxa4 {[%emt 0:00:00]} Qxb2 {[%emt 0:00:02]} 32. a5 {[%emt 0:00:06]} c5 {[%emt 0:00:21]} 33. Kh2 {[%emt 0:00:08]} Qa3 {[%emt 0:01:01]} 34. Bg1 {[%emt 0:00:41]} Qa4 {[%emt 0:02:17]} 35. e5 {[%emt 0:00:47]} dxe5 {[%emt 0:00:17]} 36. fxe5 {[%emt 0:00:22]} Bxe5+ {[%emt 0:00:03]} 37. Kh1 {[%emt 0:00:00]} Bd6 {[%emt 0:00:15]} 38. Qc3 {[%emt 0:01:11]} Qb5 {[%emt 0:00:53]} 39. Nc1 {[%emt 0:00:18]} Ne5 {[%emt 0:00:23]} 40. Nb3 {[%emt 0:00:25]} Nc6 {[%emt 0:00:04]} 41. Qe1 {[%emt 0:00:30]} 1-0

[Event "Kupreichik Memorial Rapid 2019"]
[Site "Minsk"]
[Date "2019.08.17"]
[Round "8.13"]
[White "Smirnov, Valerij"]
[Black "Pakhomov, Alexey"]
[Result "0-1"]
[ECO "E21"]
[WhiteElo "2261"]
[BlackElo "2315"]
[Annotator "NA"]
[PlyCount "81"]
[EventDate "2019.08.15"]
[EventType "swiss"]
[EventCountry "BLR"]
[SourceTitle "playchess.com"]
[Source "ChessBase"]
[SourceQuality "1"]
[TimeControl "900+10"]

1. d4 {[%emt 0:00:00]} Nf6 {[%emt 0:00:00]} 2. c4 {[%emt 0:00:00]} e6 {[%emt 0:00:00]} 3. Nf3 {[%emt 0:00:00]} Bb4+ {[%emt 0:00:00]} 4. Nc3 {[%emt 0:00:13]} c5 {[%emt 0:00:06]} 5. g3 {[%emt 0:00:20]} Ne4 {[%emt 0:01:14]} 6. Qd3 {[%emt 0:00:22]} cxd4 {[%emt 0:01:29]} 7. Nxd4 {[%emt 0:01:17]} Nxc3 {[%emt 0:03:08]} 8. bxc3 {[%emt 0:00:04]} Be7 {[%emt 0:01:28]} 9. Nb5 {[%emt 0:01:52]} O-O {[%emt 0:03:31]} 10. Bg2 {[%emt 0:00:53]} Nc6 {[%emt 0:00:31]} 11. O-O {[%emt 0:05:21]} a6 {[%emt 0:00:10]} 12. Nd6 {[%emt 0:00:06]} Ne5 {[%emt 0:00:13]} 13. Qd4 {[%emt 0:00:05]} Bxd6 {[%emt 0:00:05]} 14. Qxd6 {[%emt 0:00:02]} Nxc4 {[%emt 0:00:02]} 15. Qd4 {[%emt 0:00:31]} Qc7 {[%emt 0:02:10]} 16. Rd1 {[%emt 0:01:33]} d6 {[%emt 0:00:25]} 17. Rb1 {[%emt 0:01:11]} e5 {[%emt 0:00:38]} 18. Qd3 {[%emt 0:00:35]} Rb8 {[%emt 0:00:27]} 19. Bd5 {[%emt 0:01:03]} Be6 {[%emt 0:00:12]} 20. a4 {[%emt 0:00:34]} b5 {[%emt 0:00:16]} 21. axb5 {[%emt 0:00:06]} axb5 {[%emt 0:00:01]} 22. e4 {[%emt 0:01:11]} Rfc8 {[%emt 0:00:36]} 23. Kg2 {[%emt 0:00:34]} h6 {[%emt 0:00:11]} 24. f4 {[%emt 0:00:21]} Bxd5 {[%emt 0:00:58]} 25. Qxd5 {[%emt 0:00:02]} Qc5 {[%emt 0:00:05]} 26. Qxc5 {[%emt 0:00:33]} Rxc5 {[%emt 0:00:06]} 27. Rd3 {[%emt 0:00:11]} Kf8 {[%emt 0:00:20]} 28. Be3 {[%emt 0:00:09]} Nxe3+ {[%emt 0:00:02]} 29. Rxe3 {[%emt 0:00:02]} Rbc8 {[%emt 0:00:08]} 30. Rb3 {[%emt 0:00:01]} Ke7 31. Kf3 f6 {[%emt 0:00:11]} 32. Rd3 {[%emt 0:00:01]} R8c7 {[%emt 0:00:10]} 33. f5 {[%emt 0:00:02]} Rd7 {[%emt 0:00:08]} 34. Rd5 {[%emt 0:00:09]} Rxd5 {[%emt 0:00:07]} 35. exd5 Rc7 {[%emt 0:00:00]} 36. Rxb5 {[%emt 0:00:21]} Rxc3+ {[%emt 0:00:30]} 37. Kg4 {[%emt 0:00:16]} Rc2 {[%emt 0:00:10]} 38. h4 {[%emt 0:00:05]} Rc7 {[%emt 0:00:02]} 39. Rb6 {[%emt 0:00:08]} Rc5 {[%emt 0:00:09]} 40. Kh5 {[%emt 0:00:10]} e4 {[%emt 0:00:10]} 41. Rb7+ 0-1

[Event "Kupreichik Memorial Rapid 2019"]
[Site "Minsk"]
[Date "2019.08.17"]
[Round "8.18"]
[White "Oblamski, Vladimir"]
[Black "Maryasin, Boris"]
[Result "0-1"]
[ECO "B22"]
[WhiteElo "2088"]
[BlackElo "2302"]
[Annotator "NA"]
[PlyCount "60"]
[EventDate "2019.08.15"]
[EventType "swiss"]
[EventCountry "BLR"]
[SourceTitle "playchess.com"]
[Source "ChessBase"]
[SourceQuality "1"]
[TimeControl "900+10"]

1. e4 {[%emt 0:00:00]} c5 {[%emt 0:00:00]} 2. c3 {[%emt 0:00:00]} Nf6 {[%emt 0:00:00]} 3. e5 {[%emt 0:00:00]} Nd5 {[%emt 0:00:00]} 4. d4 {[%emt 0:00:00]} cxd4 {[%emt 0:00:00]} 5. cxd4 {[%emt 0:00:00]} d6 {[%emt 0:00:00]} 6. Nf3 {[%emt 0:00:02]} e6 {[%emt 0:00:37]} 7. Bc4 {[%emt 0:00:49]} Be7 {[%emt 0:00:13]} 8. O-O {[%emt 0:00:07]} O-O {[%emt 0:00:01]} 9. Qe2 {[%emt 0:01:49]} Nc6 {[%emt 0:00:26]} 10. Nc3 {[%emt 0:02:52]} Nxc3 {[%emt 0:00:07]} 11. bxc3 {[%emt 0:00:02]} dxe5 {[%emt 0:00:22]} 12. dxe5 {[%emt 0:01:07]} Qa5 {[%emt 0:00:23]} 13. Bd2 {[%emt 0:00:34]} b6 {[%emt 0:01:06]} 14. Bd3 {[%emt 0:03:28]} Bb7 {[%emt 0:00:15]} 15. Rfe1 {[%emt 0:00:32]} Rad8 {[%emt 0:00:41]} 16. c4 {[%emt 0:01:54]} Qa3 {[%emt 0:00:39]} 17. Be4 {[%emt 0:00:13]} Na5 {[%emt 0:00:49]} 18. Bxb7 {[%emt 0:00:51]} Nxb7 {[%emt 0:00:01]} 19. Bg5 {[%emt 0:00:10]} Bxg5 {[%emt 0:00:37]} 20. Nxg5 {[%emt 0:00:01]} Qd3 {[%emt 0:00:02]} 21. Qh5 {[%emt 0:01:52]} Nc5 {[%emt 0:01:09]} 22. Nxf7 {[%emt 0:00:44]} Rd4 {[%emt 0:01:06]} 23. Rad1 {[%emt 0:00:36]} Qxc4 {[%emt 0:00:11]} 24. Ng5 {[%emt 0:00:51]} h6 {[%emt 0:00:01]} 25. Nf3 {[%emt 0:00:13]} Rxd1 {[%emt 0:00:04]} 26. Rxd1 {[%emt 0:00:01]} Qxa2 {[%emt 0:00:14]} 27. h4 {[%emt 0:00:07]} Qc2 {[%emt 0:00:15]} 28. Nd4 {[%emt 0:00:11]} Qxf2+ {[%emt 0:00:07]} 29. Kh1 {[%emt 0:00:03]} Qg3 {[%emt 0:01:26]} 30. Nc6 {[%emt 0:00:12]} Ne4 {[%emt 0:00:44]} 0-1

[Event "Kupreichik Memorial Rapid 2019"]
[Site "Minsk"]
[Date "2019.08.17"]
[Round "8.19"]
[White "Kuleshov, Konstantin"]
[Black "Talma, Sergei"]
[Result "1-0"]
[ECO "D09"]
[WhiteElo "2076"]
[BlackElo "1882"]
[Annotator "NA"]
[PlyCount "97"]
[EventDate "2019.08.15"]
[EventType "swiss"]
[EventCountry "BLR"]
[SourceTitle "playchess.com"]
[Source "ChessBase"]
[SourceQuality "1"]
[TimeControl "900+10"]

1. d4 {[%emt 0:00:00]} d5 {[%emt 0:00:00]} 2. c4 {[%emt 0:00:00]} e5 {[%emt 0:00:01]} 3. dxe5 {[%emt 0:00:00]} d4 {[%emt 0:00:01]} 4. Nf3 {[%emt 0:00:00]} Nc6 {[%emt 0:00:01]} 5. g3 {[%emt 0:00:01]} Bf5 {[%emt 0:00:04]} 6. Bg2 {[%emt 0:00:03]} Qd7 {[%emt 0:00:50]} 7. O-O {[%emt 0:00:06]} f6 {[%emt 0:01:10]} 8. exf6 {[%emt 0:00:26]} Nxf6 {[%emt 0:00:02]} 9. Bf4 {[%emt 0:00:04]} Bd6 {[%emt 0:00:39]} 10. Nxd4 {[%emt 0:00:38]} Bxf4 {[%emt 0:00:03]} 11. Nxc6 {[%emt 0:00:02]} Bd6 {[%emt 0:01:33]} 12. Nd4 {[%emt 0:00:07]} Be4 {[%emt 0:00:19]} 13. Nb5 {[%emt 0:00:06]} Bxg2 {[%emt 0:00:47]} 14. Nxd6+ {[%emt 0:00:02]} cxd6 {[%emt 0:00:02]} 15. Kxg2 {[%emt 0:00:02]} O-O {[%emt 0:00:27]} 16. Nc3 {[%emt 0:00:04]} Qc6+ {[%emt 0:00:09]} 17. Kg1 {[%emt 0:00:02]} Qxc4 {[%emt 0:00:27]} 18. Qb3 {[%emt 0:00:07]} Qxb3 {[%emt 0:00:26]} 19. axb3 {[%emt 0:00:02]} a6 {[%emt 0:00:15]} 20. Rfd1 {[%emt 0:00:05]} Rfd8 {[%emt 0:01:59]} 21. Ra4 {[%emt 0:00:09]} Kf7 {[%emt 0:01:20]} 22. Rc4 {[%emt 0:00:18]} Rd7 {[%emt 0:01:42]} 23. f3 {[%emt 0:00:16]} d5 {[%emt 0:00:39]} 24. Rcd4 {[%emt 0:00:08]} Rad8 {[%emt 0:00:06]} 25. Kf2 {[%emt 0:00:02]} b5 {[%emt 0:01:12]} 26. g4 {[%emt 0:00:05]} h6 {[%emt 0:00:23]} 27. Na2 {[%emt 0:00:24]} Ke6 {[%emt 0:00:26]} 28. Nb4 {[%emt 0:00:02]} a5 {[%emt 0:01:07]} 29. Nc6 {[%emt 0:00:30]} Ra8 {[%emt 0:00:15]} 30. Ra1 {[%emt 0:00:01]} a4 {[%emt 0:00:37]} 31. bxa4 {[%emt 0:00:06]} Rc7 {[%emt 0:00:03]} 32. Nb4 {[%emt 0:01:02]} bxa4 {[%emt 0:00:48]} 33. Nd3 {[%emt 0:00:05]} Rc4 {[%emt 0:01:23]} 34. Rxc4 dxc4 {[%emt 0:00:01]} 35. Rxa4 {[%emt 0:00:43]} Rc8 {[%emt 0:00:18]} 36. Nf4+ {[%emt 0:00:16]} Kd6 {[%emt 0:00:36]} 37. Rb4 {[%emt 0:00:22]} Nd5 {[%emt 0:00:19]} 38. Nxd5 {[%emt 0:00:03]} Kxd5 {[%emt 0:00:01]} 39. Rb7 {[%emt 0:00:03]} g5 {[%emt 0:00:12]} 40. Rd7+ {[%emt 0:00:14]} Kc5 {[%emt 0:00:06]} 41. e3 {[%emt 0:00:16]} Rb8 {[%emt 0:00:04]} 42. Rd2 {[%emt 0:00:02]} Kb4 {[%emt 0:00:37]} 43. f4 {[%emt 0:00:04]} gxf4 {[%emt 0:00:12]} 44. exf4 {[%emt 0:00:01]} Rg8 {[%emt 0:00:01]} 45. Kf3 {[%emt 0:00:02]} Re8 {[%emt 0:00:11]} 46. g5 {[%emt 0:00:03]} hxg5 {[%emt 0:00:02]} 47. fxg5 {[%emt 0:00:01]} Re1 {[%emt 0:00:35]} 48. Rg2 {[%emt 0:00:03]} Kb3 {[%emt 0:00:06]} 49. g6 {[%emt 0:00:02]} 1-0

[Event "Kupreichik Memorial Rapid 2019"]
[Site "Minsk"]
[Date "2019.08.17"]
[Round "8.20"]
[White "Vashchilov, Sergey"]
[Black "Strizhnev, Ivan"]
[Result "1-0"]
[ECO "C11"]
[WhiteElo "2162"]
[BlackElo "1394"]
[Annotator "NA"]
[PlyCount "45"]
[EventDate "2019.08.15"]
[EventType "swiss"]
[EventCountry "BLR"]
[SourceTitle "playchess.com"]
[Source "ChessBase"]
[SourceQuality "1"]
[TimeControl "900+10"]

1. d4 {[%emt 0:00:00]} Nf6 {[%emt 0:00:00]} 2. Nc3 {[%emt 0:00:00]} d5 {[%emt 0:00:00]} 3. Bg5 {[%emt 0:00:00]} e6 {[%emt 0:00:03]} 4. e4 {[%emt 0:00:00]} dxe4 {[%emt 0:00:11]} 5. Nxe4 {[%emt 0:00:02]} Be7 {[%emt 0:00:02]} 6. Bxf6 {[%emt 0:00:02]} Bxf6 {[%emt 0:00:03]} 7. c3 {[%emt 0:00:02]} Be7 {[%emt 0:00:49]} 8. f4 {[%emt 0:00:41]} Nd7 {[%emt 0:00:43]} 9. Nf3 {[%emt 0:00:07]} Nf6 {[%emt 0:00:19]} 10. Bd3 {[%emt 0:00:05]} Bd7 {[%emt 0:00:37]} 11. Ne5 {[%emt 0:00:23]} Nd5 {[%emt 0:01:21]} 12. Qf3 {[%emt 0:00:46]} a6 {[%emt 0:02:06]} 13. O-O {[%emt 0:00:38]} Rc8 {[%emt 0:02:28]} 14. Ng5 {[%emt 0:02:33]} Bxg5 {[%emt 0:01:44]} 15. fxg5 {[%emt 0:00:02]} Rf8 {[%emt 0:01:57]} 16. Nxf7 {[%emt 0:01:48]} Qe7 {[%emt 0:00:05]} 17. Bxh7 {[%emt 0:01:05]} Bc6 {[%emt 0:01:18]} 18. Bg6 {[%emt 0:00:47]} Kd7 {[%emt 0:01:12]} 19. Ne5+ {[%emt 0:00:55]} Kd6 {[%emt 0:00:06]} 20. Qg3 {[%emt 0:01:08]} b5 {[%emt 0:01:24]} 21. Nd3+ {[%emt 0:00:37]} Kd7 {[%emt 0:00:10]} 22. Nc5+ {[%emt 0:00:04]} Kd8 {[%emt 0:00:05]} 23. Rxf8+ {[%emt 0:00:04]} 1-0

[Event "Kupreichik Memorial Rapid 2019"]
[Site "Minsk"]
[Date "2019.08.17"]
[Round "8.23"]
[White "Zverev, Lev"]
[Black "Kiryliuk, Ilya"]
[Result "1-0"]
[ECO "B42"]
[WhiteElo "1881"]
[BlackElo "1948"]
[Annotator "NA"]
[PlyCount "67"]
[EventDate "2019.08.15"]
[EventType "swiss"]
[EventCountry "BLR"]
[SourceTitle "playchess.com"]
[Source "ChessBase"]
[SourceQuality "1"]
[TimeControl "900+10"]

1. e4 {[%emt 0:01:05]} c5 {[%emt 0:00:00]} 2. Nf3 {[%emt 0:00:01]} e6 {[%emt 0:00:00]} 3. d4 {[%emt 0:00:01]} cxd4 {[%emt 0:00:00]} 4. Nxd4 {[%emt 0:00:01]} a6 {[%emt 0:00:13]} 5. Bd3 {[%emt 0:00:03]} d6 {[%emt 0:00:16]} 6. O-O {[%emt 0:00:05]} Nf6 {[%emt 0:00:11]} 7. Qe2 {[%emt 0:00:04]} Be7 {[%emt 0:00:08]} 8. c4 {[%emt 0:00:02]} b6 {[%emt 0:00:16]} 9. Nc3 {[%emt 0:00:01]} Qc7 {[%emt 0:00:11]} 10. Be3 {[%emt 0:00:06]} Bb7 {[%emt 0:00:15]} 11. f4 {[%emt 0:00:02]} Nbd7 {[%emt 0:00:11]} 12. b4 {[%emt 0:00:07]} O-O {[%emt 0:00:36]} 13. f5 {[%emt 0:00:29]} exf5 {[%emt 0:00:41]} 14. Nxf5 {[%emt 0:00:07]} Rfe8 {[%emt 0:00:06]} 15. Bf4 {[%emt 0:00:20]} Bf8 {[%emt 0:00:11]} 16. Qf3 {[%emt 0:00:11]} Ne5 {[%emt 0:00:46]} 17. Bxe5 {[%emt 0:00:13]} Rxe5 {[%emt 0:00:44]} 18. Nd5 {[%emt 0:00:31]} Nxd5 {[%emt 0:01:03]} 19. exd5 {[%emt 0:00:23]} g6 {[%emt 0:00:51]} 20. Ne3 {[%emt 0:01:27]} f5 {[%emt 0:02:47]} 21. Rac1 {[%emt 0:00:13]} Bh6 {[%emt 0:01:28]} 22. Rce1 {[%emt 0:00:20]} b5 {[%emt 0:00:23]} 23. Nxf5 {[%emt 0:01:54]} gxf5 {[%emt 0:00:10]} 24. Rxe5 {[%emt 0:00:24]} dxe5 {[%emt 0:00:03]} 25. Qxf5 {[%emt 0:00:02]} Re8 {[%emt 0:03:52]} 26. Qh5 {[%emt 0:01:23]} Be3+ {[%emt 0:00:20]} 27. Kh1 {[%emt 0:00:01]} Re7 {[%emt 0:00:17]} 28. Bxh7+ {[%emt 0:00:25]} Rxh7 {[%emt 0:00:20]} 29. Qe8+ {[%emt 0:00:03]} Kg7 {[%emt 0:00:01]} 30. Qf8+ {[%emt 0:00:02]} Kg6 {[%emt 0:00:02]} 31. Qf6+ {[%emt 0:00:05]} Kh5 {[%emt 0:00:01]} 32. Rf5+ {[%emt 0:00:01]} Kg4 {[%emt 0:00:05]} 33. Qg6+ {[%emt 0:00:01]} Kh4 {[%emt 0:00:05]} 34. Qg3# {[%emt 0:00:01]} 1-0